[Event "Early-Titled-Tuesday-Blitz-April-02-2024"]
[Site "Chess.com"]
[Date "2024.04.02"]
[Round "6"]
[White "Zhigalko_Sergei"]
[Black "krstulov_alex"]
[Result "1/2-1/2"]
[WhiteElo "2876"]
[BlackElo "2687"]
[TimeControl "180+1"]
[EndTime "9:06:27 PDT"]
[Termination "Game drawn by agreement"]

1. e4 {[%clk 0:03:00.9]} 1... c6 {[%clk 0:03:00]} 2. d4 {[%clk 0:03:00.4]} 2...
d5 {[%clk 0:03:00.7]} 3. e5 {[%clk 0:03:00.9]} 3... c5 {[%clk 0:03:01.3]} 4. Nf3
{[%clk 0:03:01.2]} 4... Nc6 {[%clk 0:02:59.5]} 5. dxc5 {[%clk 0:03:01]} 5... Bg4
{[%clk 0:02:58.7]} 6. c3 {[%clk 0:03:00.9]} 6... e6 {[%clk 0:02:55.8]} 7. Be3
{[%clk 0:02:59]} 7... a6 {[%clk 0:02:37.2]} 8. Nbd2 {[%clk 0:02:58.6]} 8... Nxe5
{[%clk 0:02:34.9]} 9. Be2 {[%clk 0:02:57.5]} 9... Nc6 {[%clk 0:02:33.1]} 10. O-O
{[%clk 0:02:57.1]} 10... Nf6 {[%clk 0:02:31.4]} 11. h3 {[%clk 0:02:47.4]} 11...
Bh5 {[%clk 0:02:23.2]} 12. b4 {[%clk 0:02:38.6]} 12... Be7 {[%clk 0:02:12.4]}
13. Nd4 {[%clk 0:02:26.4]} 13... Bxe2 {[%clk 0:02:07]} 14. Qxe2 {[%clk
0:02:27.3]} 14... O-O {[%clk 0:02:03.8]} 15. Bf4 {[%clk 0:02:10.6]} 15... Nd7
{[%clk 0:02:02.4]} 16. N2f3 {[%clk 0:02:01]} 16... Re8 {[%clk 0:02:01.2]} 17.
Rfe1 {[%clk 0:01:50.7]} 17... Bf6 {[%clk 0:01:51.8]} 18. Bd6 {[%clk 0:01:45.6]}
18... e5 {[%clk 0:01:47.7]} 19. Nf5 {[%clk 0:01:42]} 19... e4 {[%clk 0:01:42.3]}
20. N3d4 {[%clk 0:01:37]} 20... g6 {[%clk 0:01:25.8]} 21. Ne3 {[%clk 0:01:03.6]}
21... Nxd4 {[%clk 0:00:54.9]} 22. cxd4 {[%clk 0:01:03.7]} 22... Bxd4 {[%clk
0:00:55.8]} 23. Nxd5 {[%clk 0:00:46.4]} 23... Bxa1 {[%clk 0:00:54.7]} 24. Rxa1
{[%clk 0:00:47.3]} 24... Rc8 {[%clk 0:00:30.8]} 25. Rd1 {[%clk 0:00:46]} 25...
Qg5 {[%clk 0:00:28.5]} 26. Nc7 {[%clk 0:00:38]} 26... Red8 {[%clk 0:00:22.7]}
27. Qxe4 {[%clk 0:00:32.8]} 27... Nxc5 {[%clk 0:00:22.7]} 28. bxc5 {[%clk
0:00:27.1]} 28... Rxc7 {[%clk 0:00:23.2]} 29. Re1 {[%clk 0:00:25.4]} 29... Rcd7
{[%clk 0:00:23.7]} 30. Be7 {[%clk 0:00:24.8]} 30... Rxe7 {[%clk 0:00:10.6]} 31.
Qxe7 {[%clk 0:00:25.7]} 31... Qxe7 {[%clk 0:00:11.3]} 32. Rxe7 {[%clk
0:00:25.6]} 32... Rc8 {[%clk 0:00:12.2]} 33. Rxb7 {[%clk 0:00:22.3]} 33... Rxc5
{[%clk 0:00:12.2]} 34. Rb2 {[%clk 0:00:14.3]} 1/2-1/2

[Event "Early-Titled-Tuesday-Blitz-April-02-2024"]
[Site "Chess.com"]
[Date "2024.04.02"]
[Round "6"]
[White "Hamisandwich"]
[Black "ChessFighter_2011"]
[Result "0-1"]
[WhiteElo "2712"]
[BlackElo "2916"]
[TimeControl "180+1"]
[EndTime "9:06:28 PDT"]
[Termination "ChessFighter_2011 won by resignation"]

1. Nf3 {[%clk 0:03:00.9]} 1... Nf6 {[%clk 0:02:57.5]} 2. e3 {[%clk 0:02:58.8]}
2... g6 {[%clk 0:02:57.1]} 3. d4 {[%clk 0:02:57.8]} 3... Bg7 {[%clk 0:02:57.5]}
4. c4 {[%clk 0:02:58.5]} 4... O-O {[%clk 0:02:58.4]} 5. Be2 {[%clk 0:02:58.3]}
5... d6 {[%clk 0:02:57.8]} 6. Nc3 {[%clk 0:02:58.6]} 6... Nbd7 {[%clk 0:02:57]}
7. O-O {[%clk 0:02:57.5]} 7... e5 {[%clk 0:02:57.3]} 8. Qc2 {[%clk 0:02:58.2]}
8... Qe7 {[%clk 0:02:48.4]} 9. b4 {[%clk 0:02:56.5]} 9... Re8 {[%clk 0:02:46.6]}
10. a4 {[%clk 0:02:51.8]} 10... e4 {[%clk 0:02:42.2]} 11. Nd2 {[%clk 0:02:51.4]}
11... Nf8 {[%clk 0:02:42.6]} 12. Ba3 {[%clk 0:02:47.9]} 12... Bf5 {[%clk
0:02:42]} 13. Rfc1 {[%clk 0:02:46.3]} 13... h5 {[%clk 0:02:42.4]} 14. b5 {[%clk
0:02:39.9]} 14... h4 {[%clk 0:02:42.3]} 15. h3 {[%clk 0:02:39.5]} 15... N8h7
{[%clk 0:02:42.4]} 16. Qd1 {[%clk 0:02:17.4]} 16... Ng5 {[%clk 0:02:39.7]} 17.
Qf1 {[%clk 0:02:08]} 17... Qd7 {[%clk 0:02:25.1]} 18. Kh2 {[%clk 0:02:02.8]}
18... c5 {[%clk 0:02:11.6]} 19. bxc6 {[%clk 0:01:59.2]} 19... bxc6 {[%clk
0:02:11.9]} 20. Nb3 {[%clk 0:01:49.1]} 20... Bf8 {[%clk 0:01:43.4]} 21. Rab1
{[%clk 0:01:46.2]} 21... Be7 {[%clk 0:01:43.8]} 22. Na5 {[%clk 0:01:35.1]} 22...
Bd8 {[%clk 0:01:39.8]} 23. Rb7 {[%clk 0:01:22.5]} 23... Qc8 {[%clk 0:01:39.1]}
24. Nb5 {[%clk 0:00:51.3]} 24... Bxa5 {[%clk 0:01:30.9]} 25. Nxd6 {[%clk
0:00:51.5]} 25... Bc7 {[%clk 0:01:31.4]} 26. Rcb1 {[%clk 0:00:42.6]} 26... Rb8
{[%clk 0:01:17.2]} 27. Rxb8 {[%clk 0:00:35.9]} 27... Bxb8 {[%clk 0:01:18.1]} 28.
Kh1 {[%clk 0:00:30.9]} 28... Bxd6 {[%clk 0:01:17.2]} 29. Bxd6 {[%clk 0:00:31.8]}
29... Nxh3 {[%clk 0:01:10.9]} 30. gxh3 {[%clk 0:00:25.7]} 30... Bxh3 {[%clk
0:01:11.8]} 31. Qg1 {[%clk 0:00:24.6]} 31... Qf5 {[%clk 0:01:12]} 32. Qh2 {[%clk
0:00:19.2]} 32... Bg4 {[%clk 0:01:04.1]} 33. Bxg4 {[%clk 0:00:19.5]} 33... Nxg4
{[%clk 0:01:04]} 34. Qf4 {[%clk 0:00:20.4]} 34... Nxf2+ {[%clk 0:00:50.7]} 35.
Kg2 {[%clk 0:00:20]} 35... Ng4 {[%clk 0:00:50.3]} 36. Rb7 {[%clk 0:00:15.4]}
36... Qe6 {[%clk 0:00:50.4]} 37. d5 {[%clk 0:00:11.2]} 37... cxd5 {[%clk
0:00:50.5]} 38. c5 {[%clk 0:00:11.6]} 38... d4 {[%clk 0:00:50.5]} 39. exd4
{[%clk 0:00:09.5]} 39... e3 {[%clk 0:00:50.4]} 40. Be5 {[%clk 0:00:10.1]} 40...
Nxe5 {[%clk 0:00:49.3]} 41. dxe5 {[%clk 0:00:10.5]} 41... Qd5+ {[%clk
0:00:49.6]} 42. Qf3 {[%clk 0:00:09.2]} 42... h3+ {[%clk 0:00:46.3]} 43. Kg3
{[%clk 0:00:09]} 43... Qxe5+ {[%clk 0:00:45.3]} 44. Kxh3 {[%clk 0:00:09]} 44...
Qe6+ {[%clk 0:00:45.8]} 45. Kg3 {[%clk 0:00:09.1]} 45... e2 {[%clk 0:00:46.3]}
0-1

[Event "Early-Titled-Tuesday-Blitz-April-02-2024"]
[Site "Chess.com"]
[Date "2024.04.02"]
[Round "6"]
[White "Firegrizzly"]
[Black "RuperezA"]
[Result "1-0"]
[WhiteElo "2665"]
[BlackElo "2526"]
[TimeControl "180+1"]
[EndTime "9:06:28 PDT"]
[Termination "Firegrizzly won by resignation"]

1. d4 {[%clk 0:03:00.9]} 1... e6 {[%clk 0:03:00.3]} 2. e4 {[%clk 0:02:59.4]}
2... d5 {[%clk 0:03:00.5]} 3. Nc3 {[%clk 0:02:59.4]} 3... Bb4 {[%clk 0:03:00.1]}
4. e5 {[%clk 0:02:58.9]} 4... c5 {[%clk 0:03:00.5]} 5. a3 {[%clk 0:02:58.7]}
5... Bxc3+ {[%clk 0:03:01]} 6. bxc3 {[%clk 0:02:59.2]} 6... Qa5 {[%clk
0:03:01.9]} 7. Bd2 {[%clk 0:02:58.6]} 7... Qa4 {[%clk 0:03:02.4]} 8. h4 {[%clk
0:02:57.7]} 8... Nc6 {[%clk 0:02:58.2]} 9. h5 {[%clk 0:02:57.4]} 9... h6 {[%clk
0:02:58.8]} 10. Qg4 {[%clk 0:02:52.9]} 10... Kf8 {[%clk 0:02:56.4]} 11. Rh3
{[%clk 0:02:48]} 11... Nxe5 {[%clk 0:02:22.2]} 12. Qh4 {[%clk 0:02:45.9]} 12...
Nc6 {[%clk 0:02:19.5]} 13. Rb1 {[%clk 0:02:43.6]} 13... c4 {[%clk 0:01:53.1]}
14. Kd1 {[%clk 0:02:39.6]} 14... Qxa3 {[%clk 0:01:48.2]} 15. Rg3 {[%clk
0:02:38]} 15... Qe7 {[%clk 0:01:39]} 16. Qg4 {[%clk 0:02:36.1]} 16... Rh7 {[%clk
0:01:31.8]} 17. Qf4 {[%clk 0:02:28.4]} 17... Qf6 {[%clk 0:01:24.3]} 18. Qd6+
{[%clk 0:02:27.4]} 18... Qe7 {[%clk 0:01:24.9]} 19. Qf4 {[%clk 0:02:27.1]} 19...
a5 {[%clk 0:01:14]} 20. Nf3 {[%clk 0:02:23.2]} 20... a4 {[%clk 0:01:13.5]} 21.
Ne5 {[%clk 0:02:22.7]} 21... Nf6 {[%clk 0:01:04.5]} 22. Rf3 {[%clk 0:02:17.3]}
22... a3 {[%clk 0:00:57.7]} 23. Ra1 {[%clk 0:02:16.5]} 23... Ke8 {[%clk
0:00:47.9]} 24. Bc1 {[%clk 0:02:15.6]} 24... a2 {[%clk 0:00:47.3]} 25. g4 {[%clk
0:02:10.3]} 25... Rh8 {[%clk 0:00:46.1]} 26. Re3 {[%clk 0:02:07.2]} 26... Ne4
{[%clk 0:00:38.7]} 27. f3 {[%clk 0:02:03]} 27... Nd6 {[%clk 0:00:37.1]} 28. Qg3
{[%clk 0:01:54.6]} 28... Bd7 {[%clk 0:00:35]} 29. Bg2 {[%clk 0:01:53.2]} 29...
Nxe5 {[%clk 0:00:30]} 30. Qxe5 {[%clk 0:01:50.5]} 30... Bc6 {[%clk 0:00:30.5]}
31. Qxg7 {[%clk 0:01:49.4]} 31... Kd7 {[%clk 0:00:29.9]} 32. Qe5 {[%clk
0:01:45.9]} 32... Rhg8 {[%clk 0:00:26.6]} 33. Re2 {[%clk 0:01:43.8]} 33... Nb5
{[%clk 0:00:19.1]} 34. Qe3 {[%clk 0:01:38.1]} 34... Qg5 {[%clk 0:00:16.7]} 35.
Bd2 {[%clk 0:01:33.5]} 35... Qxe3 {[%clk 0:00:16.1]} 36. Rxe3 {[%clk 0:01:34.4]}
36... Rh8 {[%clk 0:00:12.3]} 37. Kc1 {[%clk 0:01:34.1]} 37... Kd6 {[%clk
0:00:11.2]} 38. Kb2 {[%clk 0:01:34.1]} 38... f6 {[%clk 0:00:11.9]} 39. Ree1
{[%clk 0:01:29.6]} 39... e5 {[%clk 0:00:11.5]} 40. dxe5+ {[%clk 0:01:28.1]}
40... fxe5 {[%clk 0:00:12.4]} 41. f4 {[%clk 0:01:28.3]} 41... e4 {[%clk
0:00:09.2]} 42. f5 {[%clk 0:01:28.7]} 42... Ke5 {[%clk 0:00:06.3]} 43. Rf1
{[%clk 0:01:27.3]} 43... Kf6 {[%clk 0:00:06.2]} 44. Rxa2 {[%clk 0:01:23.1]}
44... Rxa2+ {[%clk 0:00:05.7]} 45. Kxa2 {[%clk 0:01:24]} 45... Rg8 {[%clk
0:00:06.1]} 46. Bh3 {[%clk 0:01:23.8]} 46... e3 {[%clk 0:00:02.9]} 47. Bxe3
{[%clk 0:01:23.8]} 47... Nxc3+ {[%clk 0:00:03.8]} 48. Kb2 {[%clk 0:01:24.1]}
48... Na4+ {[%clk 0:00:04.1]} 49. Ka3 {[%clk 0:01:23.2]} 49... Ke5 {[%clk
0:00:04.3]} 50. Bxh6 {[%clk 0:01:21.5]} 50... Ra8 {[%clk 0:00:04.5]} 51. Kb4
{[%clk 0:01:21.1]} 51... Nb6 {[%clk 0:00:03.3]} 52. Bg7+ {[%clk 0:01:19.4]}
52... Kd6 {[%clk 0:00:03.4]} 53. h6 {[%clk 0:01:19.3]} 53... Ra4+ {[%clk
0:00:02.9]} 54. Kc3 {[%clk 0:01:19.2]} 54... Ra2 {[%clk 0:00:03.6]} 55. Bf8+
{[%clk 0:01:16.8]} 55... Kd7 {[%clk 0:00:03.4]} 56. h7 {[%clk 0:01:14.2]} 56...
Na4+ {[%clk 0:00:03.8]} 57. Kd4 {[%clk 0:01:14.5]} 57... Rxc2 {[%clk 0:00:04.7]}
58. h8=Q {[%clk 0:01:14.1]} 1-0

[Event "Early-Titled-Tuesday-Blitz-April-02-2024"]
[Site "Chess.com"]
[Date "2024.04.02"]
[Round "6"]
[White "SuperJesus88"]
[Black "Boundless_Strike"]
[Result "1-0"]
[WhiteElo "2546"]
[BlackElo "2656"]
[TimeControl "180+1"]
[EndTime "9:06:30 PDT"]
[Termination "SuperJesus88 won on time"]

1. e4 {[%clk 0:03:00.9]} 1... e5 {[%clk 0:02:50.9]} 2. Nf3 {[%clk 0:03:00.8]}
2... d5 {[%clk 0:02:51.1]} 3. Nc3 {[%clk 0:02:58.9]} 3... d4 {[%clk 0:02:40.1]}
4. Ne2 {[%clk 0:02:58.3]} 4... f6 {[%clk 0:02:38.6]} 5. d3 {[%clk 0:02:58.4]}
5... Nc6 {[%clk 0:02:27.3]} 6. g3 {[%clk 0:02:58.7]} 6... Be6 {[%clk 0:02:26.6]}
7. Bg2 {[%clk 0:02:58.8]} 7... Qd7 {[%clk 0:02:27.1]} 8. O-O {[%clk 0:02:57.4]}
8... O-O-O {[%clk 0:02:25.2]} 9. Re1 {[%clk 0:02:55.6]} 9... g5 {[%clk
0:02:24.2]} 10. a3 {[%clk 0:02:54.6]} 10... h5 {[%clk 0:02:21.9]} 11. h4 {[%clk
0:02:49.2]} 11... Bh3 {[%clk 0:02:04.6]} 12. hxg5 {[%clk 0:02:40.5]} 12... h4
{[%clk 0:01:18.9]} 13. Nxh4 {[%clk 0:02:32.8]} 13... fxg5 {[%clk 0:01:14.5]} 14.
Nf5 {[%clk 0:02:31.6]} 14... Qh7 {[%clk 0:01:06.1]} 15. Bf3 {[%clk 0:01:33.5]}
15... Bg4 {[%clk 0:00:36.9]} 16. Nexd4 {[%clk 0:00:56.2]} 16... Qh2+ {[%clk
0:00:30.6]} 17. Kf1 {[%clk 0:00:56.1]} 17... Bh3+ {[%clk 0:00:04.5]} 18. Ke2
{[%clk 0:00:55.9]} 18... Nxd4+ {[%clk 0:00:04.5]} 19. Nxd4 {[%clk 0:00:54.7]}
19... g4 {[%clk 0:00:03.1]} 20. Rh1 {[%clk 0:00:34.8]} 20... gxf3+ {[%clk
0:00:03.2]} 21. Nxf3 {[%clk 0:00:34.2]} 21... Qg2 {[%clk 0:00:03.7]} 22. Rg1
{[%clk 0:00:21.9]} 22... Bc5 {[%clk 0:00:03.5]} 23. Rxg2 {[%clk 0:00:22]} 23...
Bxg2 {[%clk 0:00:04.4]} 24. Be3 {[%clk 0:00:21.7]} 24... Bd6 {[%clk 0:00:04.5]}
25. Qg1 {[%clk 0:00:21.3]} 25... Bh3 {[%clk 0:00:05]} 26. Ng5 {[%clk 0:00:21.1]}
26... Bd7 {[%clk 0:00:04.6]} 27. Nf7 {[%clk 0:00:20.4]} 27... Rh7 {[%clk
0:00:02]} 28. Nxd8 {[%clk 0:00:20.4]} 28... Kxd8 {[%clk 0:00:02.9]} 29. Qg2
{[%clk 0:00:20.3]} 29... Nf6 {[%clk 0:00:03.3]} 30. Rh1 {[%clk 0:00:20.3]} 30...
Rf7 {[%clk 0:00:04.2]} 31. f3 {[%clk 0:00:20.2]} 31... Ne8 {[%clk 0:00:03.4]}
32. g4 {[%clk 0:00:20.6]} 32... Ng7 {[%clk 0:00:02.8]} 33. Rh7 {[%clk
0:00:20.6]} 33... Ke8 {[%clk 0:00:02.5]} 34. Qh2 {[%clk 0:00:20.8]} 34... Bf8
{[%clk 0:00:02.2]} 35. Bh6 {[%clk 0:00:19.7]} 1-0

[Event "Early-Titled-Tuesday-Blitz-April-02-2024"]
[Site "Chess.com"]
[Date "2024.04.02"]
[Round "6"]
[White "lularobs"]
[Black "lcmil"]
[Result "0-1"]
[WhiteElo "1567"]
[BlackElo "2281"]
[TimeControl "180+1"]
[EndTime "9:06:30 PDT"]
[Termination "lcmil won by checkmate"]

1. b4 {[%clk 0:03:00.9]} 1... e5 {[%clk 0:01:16.4]} 2. Bb2 {[%clk 0:02:58.8]}
2... Bxb4 {[%clk 0:01:14.4]} 3. Bxe5 {[%clk 0:02:58.3]} 3... Nf6 {[%clk
0:01:14.8]} 4. Nf3 {[%clk 0:02:58.3]} 4... d5 {[%clk 0:01:09.4]} 5. e3 {[%clk
0:02:54]} 5... O-O {[%clk 0:01:08.3]} 6. c3 {[%clk 0:02:50.1]} 6... Bd6 {[%clk
0:01:05.5]} 7. d4 {[%clk 0:02:41.2]} 7... c5 {[%clk 0:01:03.2]} 8. Bxd6 {[%clk
0:02:37.4]} 8... Qxd6 {[%clk 0:01:02.6]} 9. Be2 {[%clk 0:02:36.1]} 9... Bf5
{[%clk 0:00:59.3]} 10. Nbd2 {[%clk 0:02:35.3]} 10... Nc6 {[%clk 0:00:56.1]} 11.
Nb3 {[%clk 0:02:30.9]} 11... c4 {[%clk 0:00:52.7]} 12. Nbd2 {[%clk 0:02:28.3]}
12... b5 {[%clk 0:00:50.7]} 13. Nf1 {[%clk 0:01:58.3]} 13... b4 {[%clk
0:00:35.8]} 14. Ng3 {[%clk 0:01:53.3]} 14... Bg6 {[%clk 0:00:35.7]} 15. Nh4
{[%clk 0:01:27.5]} 15... bxc3 {[%clk 0:00:27]} 16. Nxg6 {[%clk 0:01:24.8]} 16...
hxg6 {[%clk 0:00:26.3]} 17. Qc2 {[%clk 0:01:19]} 17... Qa3 {[%clk 0:00:23.1]}
18. O-O {[%clk 0:01:08.6]} 18... Nb4 {[%clk 0:00:22.2]} 19. Qc1 {[%clk
0:01:05.4]} 19... Qb2 {[%clk 0:00:19.3]} 20. Rd1 {[%clk 0:01:01.2]} 20... Rab8
{[%clk 0:00:16]} 21. Rb1 {[%clk 0:00:59]} 21... Qxc1 {[%clk 0:00:15.5]} 22.
Rdxc1 {[%clk 0:00:58.4]} 22... Nxa2 {[%clk 0:00:16.4]} 23. Rxb8 {[%clk
0:00:57.3]} 23... Rxb8 {[%clk 0:00:17.3]} 24. Ra1 {[%clk 0:00:55.2]} 24... c2
{[%clk 0:00:16.6]} 25. Bf3 {[%clk 0:00:48.9]} 25... c1=Q+ {[%clk 0:00:15.8]} 26.
Rxc1 {[%clk 0:00:49.1]} 26... Nxc1 {[%clk 0:00:16.3]} 27. h3 {[%clk 0:00:46.7]}
27... a5 {[%clk 0:00:16.8]} 28. Bd1 {[%clk 0:00:44.6]} 28... Nb3 {[%clk
0:00:16.2]} 29. Ne2 {[%clk 0:00:41.8]} 29... a4 {[%clk 0:00:15.6]} 30. Nf4
{[%clk 0:00:40]} 30... a3 {[%clk 0:00:16.5]} 31. Bf3 {[%clk 0:00:13.3]} 31... a2
{[%clk 0:00:16.2]} 32. Nxd5 {[%clk 0:00:13.2]} 32... a1=Q+ {[%clk 0:00:15.7]}
33. Kh2 {[%clk 0:00:13.1]} 33... Nxd5 {[%clk 0:00:16.2]} 34. Bxd5 {[%clk
0:00:13.1]} 34... Nd2 {[%clk 0:00:17.1]} 35. e4 {[%clk 0:00:11.8]} 35... Nf1+
{[%clk 0:00:16.2]} 36. Kg1 {[%clk 0:00:09.4]} 36... Rb3 {[%clk 0:00:17.1]} 37.
Bxc4 {[%clk 0:00:08.5]} 37... Ng3+ {[%clk 0:00:17.5]} 38. Kh2 {[%clk 0:00:08.6]}
38... Qh1# {[%clk 0:00:17.7]} 0-1

[Event "Early-Titled-Tuesday-Blitz-April-02-2024"]
[Site "Chess.com"]
[Date "2024.04.02"]
[Round "6"]
[White "Manukyan_Artak"]
[Black "Fy_Rakotomaharo"]
[Result "0-1"]
[WhiteElo "2553"]
[BlackElo "2698"]
[TimeControl "180+1"]
[EndTime "9:06:32 PDT"]
[Termination "Fy_Rakotomaharo won on time"]

1. e4 {[%clk 0:02:56.6]} 1... c5 {[%clk 0:02:59.8]} 2. Nf3 {[%clk 0:02:48.6]}
2... e6 {[%clk 0:03:00.3]} 3. c3 {[%clk 0:02:36.2]} 3... Nf6 {[%clk 0:03:00.1]}
4. e5 {[%clk 0:02:15]} 4... Nd5 {[%clk 0:02:59.3]} 5. d4 {[%clk 0:02:15.9]} 5...
cxd4 {[%clk 0:03:00.1]} 6. cxd4 {[%clk 0:02:16.8]} 6... d6 {[%clk 0:03:00.8]} 7.
Nc3 {[%clk 0:01:45.5]} 7... Nxc3 {[%clk 0:03:00.1]} 8. bxc3 {[%clk 0:01:46.4]}
8... Qc7 {[%clk 0:03:00.7]} 9. Bd2 {[%clk 0:01:22.8]} 9... Nd7 {[%clk
0:02:59.3]} 10. Bb5 {[%clk 0:00:43.7]} 10... a6 {[%clk 0:02:58.6]} 11. Bxd7+
{[%clk 0:00:43.4]} 11... Bxd7 {[%clk 0:02:59.5]} 12. O-O {[%clk 0:00:43.6]}
12... Be7 {[%clk 0:02:57.4]} 13. Re1 {[%clk 0:00:42.6]} 13... O-O {[%clk
0:02:56.7]} 14. Bg5 {[%clk 0:00:35.3]} 14... Bc6 {[%clk 0:02:48.1]} 15. Bxe7
{[%clk 0:00:33.3]} 15... Qxe7 {[%clk 0:02:49]} 16. exd6 {[%clk 0:00:31.3]} 16...
Qxd6 {[%clk 0:02:49.9]} 17. Ne5 {[%clk 0:00:31.7]} 17... Rac8 {[%clk 0:02:49.8]}
18. Re3 {[%clk 0:00:31.4]} 18... Bd5 {[%clk 0:02:45.2]} 19. Rg3 {[%clk
0:00:30.9]} 19... f6 {[%clk 0:02:33.7]} 20. Ng4 {[%clk 0:00:25]} 20... Kh8
{[%clk 0:02:31.8]} 21. h4 {[%clk 0:00:23.3]} 21... Qf4 {[%clk 0:02:27.3]} 22.
Qc1 {[%clk 0:00:20]} 22... Qxc1+ {[%clk 0:02:23.2]} 23. Rxc1 {[%clk 0:00:20.9]}
23... Bxa2 {[%clk 0:02:23.1]} 24. h5 {[%clk 0:00:17.6]} 24... h6 {[%clk
0:02:20.7]} 25. Ne3 {[%clk 0:00:14.8]} 25... Rc7 {[%clk 0:02:12.2]} 26. Nd1
{[%clk 0:00:14.3]} 26... Rfc8 {[%clk 0:02:07.6]} 27. f4 {[%clk 0:00:14.5]} 27...
Bc4 {[%clk 0:02:04.4]} 28. Nb2 {[%clk 0:00:13.9]} 28... Be2 {[%clk 0:02:04.2]}
29. Kf2 {[%clk 0:00:12.6]} 29... Bxh5 {[%clk 0:02:04.2]} 30. Na4 {[%clk
0:00:12.7]} 30... Rc6 {[%clk 0:01:59.2]} 31. Re3 {[%clk 0:00:10.6]} 31... Bg4
{[%clk 0:00:40.2]} 32. Nc5 {[%clk 0:00:06.5]} 32... R8c7 {[%clk 0:00:38.9]} 33.
Rce1 {[%clk 0:00:03.3]} 33... Kg8 {[%clk 0:00:30.7]} 34. Nxe6 {[%clk 0:00:02.3]}
34... Bxe6 {[%clk 0:00:31.3]} 35. Rxe6 {[%clk 0:00:03.2]} 35... Rxc3 {[%clk
0:00:31.1]} 36. d5 {[%clk 0:00:03.1]} 36... Rd3 {[%clk 0:00:29.9]} 37. d6 {[%clk
0:00:02.6]} 37... Rd7 {[%clk 0:00:29.6]} 38. Re8+ {[%clk 0:00:02.9]} 38... Kh7
{[%clk 0:00:29.4]} 39. R1e7 {[%clk 0:00:03.8]} 39... R3xd6 {[%clk 0:00:28.9]}
0-1

[Event "Early-Titled-Tuesday-Blitz-April-02-2024"]
[Site "Chess.com"]
[Date "2024.04.02"]
[Round "6"]
[White "Baku_Boulevard"]
[Black "vovachesss"]
[Result "1/2-1/2"]
[WhiteElo "3036"]
[BlackElo "2830"]
[TimeControl "180+1"]
[EndTime "9:06:33 PDT"]
[Termination "Game drawn by repetition"]

1. e4 {[%clk 0:03:00.9]} 1... e5 {[%clk 0:02:55.4]} 2. Nc3 {[%clk 0:03:01.1]}
2... Nf6 {[%clk 0:02:54]} 3. g3 {[%clk 0:03:01.2]} 3... d5 {[%clk 0:02:53.8]} 4.
exd5 {[%clk 0:03:01.6]} 4... c6 {[%clk 0:02:54.5]} 5. d6 {[%clk 0:03:00.4]} 5...
Bxd6 {[%clk 0:02:54.3]} 6. Bg2 {[%clk 0:03:01]} 6... O-O {[%clk 0:02:55.1]} 7.
d3 {[%clk 0:03:01.5]} 7... Re8 {[%clk 0:02:55.5]} 8. Nf3 {[%clk 0:03:00.1]} 8...
Nbd7 {[%clk 0:02:55.9]} 9. O-O {[%clk 0:02:59.9]} 9... Nf8 {[%clk 0:02:56.4]}
10. Re1 {[%clk 0:03:00.4]} 10... Ng6 {[%clk 0:02:56.2]} 11. h3 {[%clk
0:02:58.6]} 11... h6 {[%clk 0:02:53.4]} 12. Be3 {[%clk 0:02:47]} 12... a5 {[%clk
0:02:53]} 13. a3 {[%clk 0:02:46.6]} 13... Be6 {[%clk 0:02:52.4]} 14. d4 {[%clk
0:02:41.7]} 14... Qc7 {[%clk 0:02:38.1]} 15. dxe5 {[%clk 0:02:19.2]} 15... Nxe5
{[%clk 0:02:38.3]} 16. Nxe5 {[%clk 0:02:19.5]} 16... Bxe5 {[%clk 0:02:38]} 17.
Bd4 {[%clk 0:02:20.2]} 17... Bxd4 {[%clk 0:02:30.7]} 18. Qxd4 {[%clk 0:02:21.1]}
18... Bf5 {[%clk 0:02:28.2]} 19. Qc5 {[%clk 0:02:16.6]} 19... Qd7 {[%clk
0:01:50.8]} 20. Red1 {[%clk 0:01:34]} 20... Qe6 {[%clk 0:01:47.3]} 21. Rd6
{[%clk 0:01:18.9]} 21... Qe5 {[%clk 0:01:44.1]} 22. Qxe5 {[%clk 0:01:19]} 22...
Rxe5 {[%clk 0:01:45]} 23. Rd2 {[%clk 0:01:18.8]} 23... Rae8 {[%clk 0:01:43.3]}
24. Kf1 {[%clk 0:01:16.4]} 24... Ne4 {[%clk 0:01:23.1]} 25. Bxe4 {[%clk
0:01:03.4]} 25... Bxe4 {[%clk 0:01:24]} 26. Nxe4 {[%clk 0:01:03.7]} 26... Rxe4
{[%clk 0:01:24.9]} 27. Rad1 {[%clk 0:01:01.5]} 27... Kf8 {[%clk 0:01:24.4]} 28.
Rd7 {[%clk 0:00:58.8]} 28... R4e7 {[%clk 0:01:15.2]} 29. a4 {[%clk 0:00:54.9]}
29... f6 {[%clk 0:01:15.2]} 30. h4 {[%clk 0:00:50.4]} 30... Kf7 {[%clk
0:01:15.4]} 31. c3 {[%clk 0:00:46]} 31... h5 {[%clk 0:01:15.5]} 32. b4 {[%clk
0:00:43.6]} 32... Ra8 {[%clk 0:01:05.8]} 33. Rd8 {[%clk 0:00:30.7]} 33... Rxd8
{[%clk 0:01:01.1]} 34. Rxd8 {[%clk 0:00:31.6]} 34... axb4 {[%clk 0:01:02]} 35.
cxb4 {[%clk 0:00:31.4]} 35... Re5 {[%clk 0:00:54.9]} 36. Rd7+ {[%clk 0:00:30.5]}
36... Re7 {[%clk 0:00:55.4]} 37. Rd4 {[%clk 0:00:27.3]} 37... Kg6 {[%clk
0:00:40.8]} 38. Kg2 {[%clk 0:00:24.1]} 38... Kf5 {[%clk 0:00:40.4]} 39. Kf3
{[%clk 0:00:23.6]} 39... g5 {[%clk 0:00:40.1]} 40. hxg5 {[%clk 0:00:17]} 40...
fxg5 {[%clk 0:00:41]} 41. Rc4 {[%clk 0:00:17.5]} 41... g4+ {[%clk 0:00:40.1]}
42. Kg2 {[%clk 0:00:17.9]} 42... Re4 {[%clk 0:00:39.6]} 43. Rc5+ {[%clk
0:00:17.7]} 43... Kg6 {[%clk 0:00:40]} 44. b5 {[%clk 0:00:17.5]} 44... Rxa4
{[%clk 0:00:40.7]} 45. bxc6 {[%clk 0:00:17.7]} 45... bxc6 {[%clk 0:00:39.8]} 46.
Rxc6+ {[%clk 0:00:18.6]} 46... Kg5 {[%clk 0:00:40.1]} 47. Rc5+ {[%clk
0:00:19.1]} 47... Kg6 {[%clk 0:00:40.5]} 48. Rc6+ {[%clk 0:00:19.3]} 48... Kg5
{[%clk 0:00:41]} 49. Rc2 {[%clk 0:00:19.9]} 49... Rb4 {[%clk 0:00:40.9]} 50. Re2
{[%clk 0:00:19.3]} 50... Rb5 {[%clk 0:00:41.1]} 51. Rd2 {[%clk 0:00:17.3]} 51...
Rb1 {[%clk 0:00:41.4]} 52. Re2 {[%clk 0:00:17.6]} 52... Rc1 {[%clk 0:00:41.9]}
53. Rd2 {[%clk 0:00:17.9]} 53... Rb1 {[%clk 0:00:42.4]} 54. Re2 {[%clk
0:00:18.4]} 54... Rc1 {[%clk 0:00:43]} 55. Rd2 {[%clk 0:00:18.9]} 55... Rb1
{[%clk 0:00:43.6]} 1/2-1/2